Workbook

Sheet CSV
A1: Stations | B1: 5 | C1: Chines | D1: 5
A2: Station | B2: Chine | C2: X | D2: Y | E2: Z | F2: Break | G2: Colour
A3: 1 | B3: 1 | C3: 35 | D3: 0 | E3: 260 | F3: TRUE | G3: 5
A4: 1 | B4: 2 | C4: 35 | D4: 0 | E4: 260 | F4: TRUE | G4: 4
A5: 1 | B5: 3 | C5: 35 | D5: 0 | E5: 260 | F5: TRUE | G5: 3
A6: 1 | B6: 4 | C6: 35 | D6: 0 | E6: 260 | F6: TRUE | G6: 2
A7: 1 | B7: 5 | C7: 35 | D7: 0 | E7: 260 | F7: TRUE | G7: 1
A8: 2 | B8: 1 | C8: 200 | D8: 0 | E8: -50 | F8: TRUE | G8: 5
A9: 2 | B9: 2 | C9: 200 | D9: 0 | E9: -50 | F9: TRUE | G9: 4
A10: 2 | B10: 3 | C10: 200 | D10: 52 | E10: 250 | F10: FALSE | G10: 3
A11: 2 | B11: 4 | C11: 200 | D11: 0 | E11: 250 | F11: TRUE | G11: 2
A12: 2 | B12: 5 | C12: 200 | D12: 0 | E12: 250 | F12: TRUE | G12: 1
A13: 3 | B13: 1 | C13: 2000 | D13: 0 | E13: -75 | F13: FALSE | G13: 5
A14: 3 | B14: 2 | C14: 2000 | D14: 275 | E14: -75 | F14: FALSE | G14: 4
A15: 3 | B15: 3 | C15: 2000 | D15: 325 | E15: 200 | F15: FALSE | G15: 3
A16: 3 | B16: 4 | C16: 2000 | D16: 275 | E16: 200 | F16: FALSE | G16: 2
A17: 3 | B17: 5 | C17: 2000 | D17: 275 | E17: 250 | F17: FALSE | G17: 1
A18: 4 | B18: 1 | C18: 3800 | D18: 0 | E18: -50 | F18: TRUE | G18: 5
A19: 4 | B19: 2 | C19: 3800 | D19: 0 | E19: -50 | F19: TRUE | G19: 4
A20: 4 | B20: 3 | C20: 3800 | D20: 52 | E20: 250 | F20: FALSE | G20: 3
A21: 4 | B21: 4 | C21: 3800 | D21: 0 | E21: 250 | F21: TRUE | G21: 2
A22: 4 | B22: 5 | C22: 3800 | D22: 0 | E22: 250 | F22: TRUE | G22: 1
A23: 5 | B23: 1 | C23: 3965 | D23: 0 | E23: 260 | F23: TRUE | G23: 0
A24: 5 | B24: 2 | C24: 3965 | D24: 0 | E24: 260 | F24: TRUE | G24: 0
A25: 5 | B25: 3 | C25: 3965 | D25: 0 | E25: 260 | F25: TRUE | G25: 0
A26: 5 | B26: 4 | C26: 3965 | D26: 0 | E26: 260 | F26: TRUE | G26: 0
A27: 5 | B27: 5 | C27: 3965 | D27: 0 | E27: 260 | F27: TRUE | G27: 0

Sheet MyCanoe
A1: MyCanoe
A2: Find Offet Table at row | B2: 17 | M2: MyCanoe Basic Design Statistics
A3: Stations | B3: 5 | M3: Length Overall (LOA) | Q3: =(V19-B19)/1000 -> 3.93 | R3: m
A4: Chines | B4: 5 | M4: Beam Overall (BOA) | Q4: =M19/500 -> 0.65 | R4: m
M5: Length Water Line (LWL) | Q5: =(Q19-G19)/1000 -> 3.6 | R5: m
M6: Beam Water Line (BWL) | Q6: =M20/500 -> 0.55 | R6: m | S6: Actually the bottom width
M7: Depth Water Line (DWL) | Q7: =-N20/1000 -> 0.075 | R7: m
M8: Amidships Freeboard | Q8: =N17/1000 -> 0.25 | R8: m
M9: Forward Freeboard | Q9: =D17/1000 -> 0.26 | R9: m
M10: Rear Freeboard | Q10: =X17/1000 -> 0.26 | R10: m
A15: Station | B15: 1 | G15: 2 | L15: 3 | Q15: 4 | V15: 5 | AA15: 6 | AF15: 7
A16: Chine | B16: X | C16: Y | D16: Z | E16: Break | F16: Colour | G16: X | H16: Y | I16: Z | J16: Break | K16: Colour | L16: X | M16: Y | N16: Z | O16: Break | P16: Colour | Q16: X | R16: Y | S16: Z | T16: Break | U16: Colour | V16: X | W16: Y | X16: Z | Y16: Break | Z16: Colour | AA16: X | AB16: Y | AC16: Z | AD16: Break | AE16: Colour | AF16: X | AG16: Y | AH16: Z | AI16: Break | AJ16: Colour
A17: Coaming | B17: 35 | C17: 0 | D17: 260 | E17: TRUE | F17: 1 | G17: 200 | H17: 0 | I17: 250 | J17: TRUE | K17: 1 | L17: 2000 | M17: 275 | N17: 250 | O17: FALSE | P17: 1 | Q17: 3800 | R17: 0 | S17: 250 | T17: TRUE | U17: 1 | V17: 3965 | W17: 0 | X17: 260 | Y17: TRUE | Z17: 0
A18: Deck | B18: 35 | C18: 0 | D18: 260 | E18: TRUE | F18: 2 | G18: 200 | H18: 0 | I18: 250 | J18: TRUE | K18: 2 | L18: 2000 | M18: 275 | N18: 200 | O18: FALSE | P18: 2 | Q18: 3800 | R18: 0 | S18: 250 | T18: TRUE | U18: 2 | V18: 3965 | W18: 0 | X18: 260 | Y18: TRUE | Z18: 0
A19: Sheer | B19: 35 | C19: 0 | D19: 260 | E19: TRUE | F19: 3 | G19: 200 | H19: 52 | I19: 250 | J19: FALSE | K19: 3 | L19: 2000 | M19: 325 | N19: 200 | O19: FALSE | P19: 3 | Q19: 3800 | R19: 52 | S19: 250 | T19: FALSE | U19: 3 | V19: 3965 | W19: 0 | X19: 260 | Y19: TRUE | Z19: 0
A20: Chine | B20: 35 | C20: 0 | D20: 260 | E20: TRUE | F20: 4 | G20: 200 | H20: 0 | I20: -50 | J20: TRUE | K20: 4 | L20: 2000 | M20: 275 | N20: -75 | O20: FALSE | P20: 4 | Q20: 3800 | R20: 0 | S20: -50 | T20: TRUE | U20: 4 | V20: 3965 | W20: 0 | X20: 260 | Y20: TRUE | Z20: 0
A21: Centreline | B21: 35 | C21: 0 | D21: 260 | E21: TRUE | F21: 5 | G21: 200 | H21: 0 | I21: -50 | J21: TRUE | K21: 5 | L21: 2000 | M21: 0 | N21: -75 | O21: FALSE | P21: 5 | Q21: 3800 | R21: 0 | S21: -50 | T21: TRUE | U21: 5 | V21: 3965 | W21: 0 | X21: 260 | Y21: TRUE | Z21: 0

Sheet MyCanoe Basic Calcs
B2: MyCanoe Basic Metrics
B3: Length Overall (LOA) | C3: =MyCanoe!Q3 -> 3.93 | D3: m
B4: Beam Overall (BOA) | C4: =MyCanoe!Q4 -> 0.65 | D4: m
B5: Length Water Line (LWL) | C5: =MyCanoe!Q5 -> 3.6 | D5: m
B6: Beam Water Line (BWL) | C6: =MyCanoe!Q6 -> 0.55 | D6: m | E6: Actually the bottom width
B7: Depth Water Line (DWL) | C7: =MyCanoe!Q7 -> 0.075 | D7: m
B8: Amidships Freeboard | C8: =MyCanoe!Q8 -> 0.25 | D8: m
B9: Forward Freeboard | C9: =MyCanoe!Q9 -> 0.26 | D9: m
B10: Rear Freeboard | C10: =MyCanoe!Q10 -> 0.26 | D10: m
B12: Basic Calculations (approximate)
B13: Mid-Section Area | C13: =C6*C7 -> 0.04125 | D13: m^2
B14: Plan Water Line Area | C14: =C6*C5*2/3 -> 1.32 | D14: m^2
B15: Displacement Volume | C15: =C5*C6*C7*2/3 -> 0.099 | D15: m^3
B16: Displacement Weight | C16: =C15*1025 -> 101.475 | D16: kg
B17: Prismatic Coefficient (cp) | C17: =C15/(C5*C6*C7) -> 0.6666666667
B18: Displacement Length Ratio (DLR) | C18: =C16/(C3/3.048)^3 -> 47.33978671
B19: Hull Speed | C19: =1.34*(C5*3.28)^0.5 -> 4.604611254 | D19: kt
B20: Design G Force | C20: 3.5 | D20: g
B21: Design Pressure | C21: =C20*C16*9.81/1000/C14 -> 2.639503125 | D21: kPa
B23: Bottom Plank Design
B24: Design Pressure (P) | C24: =C21 -> 2.639503125 | D24: kPa
B25: Span (L) | C25: =C6*1000 -> 550 | D25: mm | E25: BWL
B26: Allowable Stress (S) | C26: 14000 | D26: kPa | E26: F14 Plywood
B27: Plank Thickness (t) | C27: =(C24*C25*C25/C26/2)^0.5 -> 5.340043122 | D27: mm | E27: t^2=P*L^2/2/S, ~fixed sides
B28: Design Plank Thickness (t) | C28: 6 | D28: mm
B29: Modulus of Elasticity (E) | C29: 10500000 | D29: kPa
B30: Moment of Inertia (I) | C30: =1000*C28^3/12 -> 18000 | D30: mm^4
B31: Deflection (d) | C31: =C24*C25^4/384/C29/C30*1000 -> 3.327973887 | D31: mm | E31: d=P*L^4/384EI (2% max)
B32: Deflection Ratio | C32: =C25/C31 -> 165.2657198
B33: Maximum Concentrated Load | C33: =C26*C28*C28/1000000 -> 0.504 | D33: kN | E33: =S*t*t
B36: Hull Centre Reinforcement
B37: T-Section Modulus
B38: Maximum Rib Spacing (Flange Width) | C38: =36*C40+C41 -> 296 | D38: mm | E38: Fw<36t+w
B39: Design Rib Spacing | C39: 200 | D39: mm
B40: Plank Thickness (Flange Thickness) | C40: =C28 -> 6 | D40: mm
B41: Rib Width (Web Thickness) | C41: 80 | D41: mm
B42: Rib Thickness (Web Height) | C42: 4 | D42: mm
B43: A | C43: =C38*C40+C42*C41 -> 2096 | D43: mm^2
B44: cy | C44: =(C38*C40*C40/2+C42*C41*(C40+C42/2))/(C38*C40+C42*C41) -> 3.763358779 | D44: mm | E44: From top of T
B45: cx | C45: =(C38*C40*0/2+C42*C41*0/2)/(C38*C40+C42*C41) -> 0 | D45: mm | E45: From centre line of T
B46: Ixx | C46: =C39*C40^3/12+C39*C40*(C44-C40/2)^2+C41*C42^3/12+C41*C42*(C44-C40-C42/2)^2 -> 10469.64784 | D46: mm^4
B47: Iyy | C47: =C38*C38*C38*C40/12+C41*C41*C41*C42/12 -> 13137834.67 | D47: mm^4
B48: Design Point Load | C48: 1 | D48: kN | E48: ~100kg
B49: Span | C49: =C25 -> 550 | D49: mm
B50: Allowable Stress | C50: =C26 -> 14000 | D50: kPa | E50: F14 Plywood
B51: Bending Moment | C51: =C48*C49/8 -> 68.75 | D51: Nm
B52: Section Modulus | C52: =C46/C44 -> 2781.995675 | D52: mm^3
B53: Working Stress (per rib) | C53: =C51/C52*1000000 -> 24712.47552 | D53: kN
B54: Distribute Load (over two ribs) | C54: =C53/2 -> 12356.23776 | D54: kN
B55: Safety Factor | C55: =C50/C54 -> 1.133030966
B56: Note: May be easier to either double plank thickness or reinforce with one layers of 4 oz/sq_yd fibre-glass on both sides
